bitfinex-derivatives/quotes_BTCF0:USTF0_20241227
["timestamp","ask_amount","ask_price","bid_price","bid_amount"]
[1735326465223,0.3608,94527.0,94522.0,0.0366]
[1735326466034,0.3588,94533.0,94522.0,0.0366]
[1735326466341,0.3588,94533.0,94522.0,0.04665236]
[1735326466527,0.052976,94528.0,94522.0,0.0366]
[1735326466727,0.10737817,94532.0,94522.0,0.002]
[1735326467030,0.413778,94524.0,94522.0,0.002]
[1735326467537,0.047982,94517.0,94509.0,0.0356]
[1735326467738,0.3608,94510.0,94509.0,0.0356]
[1735326468129,0.3578,94510.0,94509.0,0.0356]
[1735326469144,0.410786,94510.0,94500.0,0.1]
[1735326469637,0.3578,94510.0,94500.0,0.20737817]
[1735326469838,0.3588,94510.0,94500.0,0.20737817]
[1735326470136,0.3588,94510.0,94509.0,0.005]
[1735326470328,0.3588,94510.0,94509.0,1.505]
[1735326470528,0.001,94510.0,94509.0,1.505]
[1735326470745,0.001,94510.0,94509.0,1.5]
[1735326471532,0.001,94510.0,94509.0,1.503]
[1735326472042,0.41434401,94515.0,94509.0,1.503]
[1735326472242,0.001,94510.0,94509.0,1.503]
[1735326479842,0.001,94510.0,94509.0,1.5]
[1735326480049,0.002,94510.0,94509.0,1.5]
[1735326480248,0.001,94510.0,94509.0,1.5]
[1735326480551,0.001,94510.0,94508.0,0.00158711]
[1735326480552,0.052987,94509.0,94508.0,0.00158711]
[1735326480740,0.091587,94509.0,94508.0,0.00158711]
[1735326481949,0.093587,94509.0,94508.0,0.00158711]
[1735326482954,0.094587,94509.0,94508.0,0.00158711]
[1735326486963,0.003,94509.0,94508.0,0.00158711]
[1735326487467,0.003,94509.0,94508.0,0.07748711]
[1735326487665,0.003,94509.0,94508.0,1.57748711]
[1735326488372,0.003,94509.0,94500.0,0.1]
[1735326488562,0.052991,94501.0,94500.0,0.1]
[1735326488758,0.04943962,94501.0,94500.0,0.1]
[1735326489165,0.003,94509.0,94508.0,0.052987]
[1735326489366,0.001,94509.0,94508.0,0.052987]
[1735326489662,0.052981,94520.0,94511.0,0.052985]
[1735326489971,0.052981,94520.0,94512.0,1.5]
[1735326490158,0.10737817,94522.0,94511.0,0.052985]
[1735326490358,0.052981,94519.0,94511.0,0.052985]
[1735326490762,0.10737817,94530.0,94512.0,1.5]
[1735326490965,0.052977,94526.0,94512.0,1.5375]
[1735326491165,0.10737817,94522.0,94512.0,1.5375]
[1735326491767,0.052979,94523.0,94512.0,1.5375]
[1735326492259,0.052976,94529.0,94512.0,1.5375]
[1735326492462,0.36140001,94531.0,94529.0,0.052975]
[1735326492770,0.3608,94531.0,94529.0,0.052975]
[1735326493362,0.3608,94531.0,94512.0,1.5375]
[1735326493564,0.3608,94519.0,94512.0,0.0375]
[1735326493768,0.052982,94517.0,94512.0,0.0375]
[1735326493965,0.052982,94517.0,94512.0,0.41704074]
[1735326494276,0.3608,94519.0,94512.0,0.41704074]
[1735326494775,0.3608,94519.0,94512.0,0.47002474]
[1735326495076,0.3608,94519.0,94514.0,0.052984]
[1735326495373,0.48717538,94519.0,94514.0,0.052984]
[1735326495778,0.3608,94516.0,94504.0,0.25383177]
[1735326495978,0.3608,94505.0,94504.0,0.25383177]
[1735326496767,0.3998,94505.0,94504.0,0.25383177]
[1735326496976,0.052989,94504.0,94503.0,0.0015872]
[1735326497275,0.051989,94504.0,94503.0,0.0015872]
[1735326498367,0.10354417,94504.0,94503.0,0.0015872]
[1735326499265,0.45737135,94504.0,94453.0,0.80111558]
[1735326499467,0.774602,94481.0,94459.0,0.0383]
[1735326499675,0.053003,94479.0,94478.0,0.25383177]
[1735326500570,0.048003,94479.0,94478.0,0.25383177]
[1735326501170,0.053006,94474.0,94473.0,0.00158769]
[1735326501364,0.053015,94458.0,94457.0,0.25383177]
[1735326501570,0.413815,94458.0,94457.0,0.25383177]
[1735326502878,0.408815,94458.0,94457.0,0.25383177]
[1735326503176,0.053016,94457.0,94449.0,0.0365]
[1735326503375,0.3608,94450.0,94449.0,0.0365]
[1735326503761,0.3578,94450.0,94449.0,0.0365]
[1735326504372,0.3578,94450.0,94449.0,0.0405]
[1735326505373,0.3578,94450.0,94449.0,1.5405]
[1735326505776,0.3009,94450.0,94449.0,1.5405]
[1735326506077,0.3019,94450.0,94449.0,1.5405]
[1735326506475,0.001,94450.0,94449.0,1.5405]
[1735326507272,0.001,94450.0,94449.0,1.504]
[1735326507972,0.001,94450.0,94449.0,1.8648]
[1735326508870,0.001,94450.0,94449.0,1.504]
[1735326509070,0.05402,94450.0,94449.0,1.504]
[1735326509468,0.05402,94450.0,94449.0,0.004]
[1735326510474,0.05402,94450.0,94431.0,0.25383177]
[1735326510475,0.05303,94432.0,94431.0,0.25383177]
[1735326510774,0.41383,94432.0,94431.0,0.25383177]
[1735326511079,0.053034,94424.0,94417.0,1.5]
[1735326511274,0.3608,94423.0,94417.0,1.5]
[1735326511479,0.3608,94423.0,94416.0,0.0343]
[1735326511772,0.339951,94423.0,94416.0,0.0343]
[1735326511971,0.053034,94424.0,94416.0,1.5343]
[1735326512578,0.001,94423.0,94416.0,1.5343]
[1735326513170,0.054034,94424.0,94416.0,1.5343]
[1735326513581,0.053034,94424.0,94416.0,1.5343]
[1735326513776,0.001,94423.0,94416.0,1.5343]
[1735326513963,0.001,94423.0,94422.0,0.053035]
[1735326514678,0.001,94423.0,94422.0,1.553035]
[1735326514972,0.001,94423.0,94422.0,1.5]
[1735326515569,0.053031,94430.0,94422.0,1.5]
[1735326515778,0.001,94424.0,94422.0,1.5]
[1735326516181,0.001,94423.0,94422.0,1.5]
[1735326516770,0.054031,94430.0,94422.0,1.5]
[1735326517375,0.001,94423.0,94422.0,1.5]
[1735326518683,0.053026,94439.0,94422.0,1.5]
[1735326518981,0.001,94430.0,94425.0,0.053034]
[1735326519280,0.053027,94438.0,94426.0,0.0364]
[1735326520683,0.053027,94437.0,94426.0,0.0364]
[1735326520975,0.001,94438.0,94422.0,1.50076]
[1735326521179,0.053035,94422.0,94416.0,0.0343]
[1735326521683,0.3608,94436.0,94419.0,0.053037]
[1735326521873,0.10737817,94430.0,94419.0,0.053037]
[1735326522283,0.3608,94436.0,94419.0,0.053037]
[1735326522479,0.053032,94429.0,94420.0,0.053036]
[1735326522684,0.053032,94429.0,94423.0,0.3608]
[1735326525582,0.054032,94429.0,94423.0,0.3608]
[1735326526089,0.054032,94429.0,94420.0,0.053036]
[1735326526883,0.054032,94429.0,94423.0,0.3608]
[1735326527189,0.054032,94429.0,94422.0,0.3608]
[1735326527589,0.054032,94429.0,94420.0,0.053036]
[1735326527590,0.054032,94429.0,94423.0,0.3608]
[1735326528283,0.001,94429.0,94423.0,0.3608]
[1735326528479,0.09473088,94434.0,94424.0,0.053034]
[1735326528685,0.3608,94436.0,94425.0,0.053033]
[1735326528686,0.001,94429.0,94425.0,0.053033]
[1735326528987,0.001,94429.0,94427.0,0.053032]
[1735326529184,0.001,94429.0,94424.0,0.035]
[1735326529582,0.09473088,94432.0,94429.0,0.053031]
[1735326530181,0.12630784,94434.0,94429.0,0.053031]
[1735326530890,0.12630784,94434.0,94432.0,0.053029]
[1735326531395,0.15816957,94440.0,94432.0,0.053029]
[1735326531794,0.15816957,94440.0,94434.0,0.053029]
[1735326531994,0.15816957,94440.0,94435.0,0.0371]
[1735326532185,0.15816957,94440.0,94438.0,0.053026]
[1735326532884,0.001,94440.0,94438.0,0.053026]
[1735326533394,0.15816957,94448.0,94447.0,0.053021]
[1735326533589,0.15816957,94448.0,94447.0,0.413821]
[1735326534088,0.09483914,94455.0,94453.0,0.053018]
[1735326535385,0.3608,94464.0,94453.0,0.053018]
[1735326535386,0.09483914,94460.0,94453.0,0.053018]
[1735326536189,0.004,94455.0,94453.0,0.053018]
[1735326536593,0.004,94455.0,94453.0,0.0635519]
[1735326536896,0.001,94455.0,94453.0,0.0635519]
[1735326538389,0.002,94460.0,94453.0,0.0105339]
[1735326538588,0.002,94460.0,94456.0,0.053016]
[1735326538798,0.09483914,94462.0,94459.0,0.053015]
[1735326539594,0.45563914,94464.0,94459.0,0.053015]
[1735326540393,0.053015,94459.0,94449.0,0.05302]
[1735326540583,0.10737817,94460.0,94448.0,0.01054531]
[1735326540897,0.10737817,94460.0,94447.0,0.3608]
[1735326540898,0.3608,94449.0,94430.0,0.2537824]
[1735326541093,0.3608,94436.0,94430.0,0.2537824]
[1735326541292,0.0372,94435.0,94430.0,0.2537824]
[1735326541499,0.05303,94431.0,94430.0,0.2537824]
[1735326542199,0.05303,94431.0,94419.0,0.0105225]
[1735326542491,0.3608,94426.0,94403.0,1.5]
[1735326542696,0.3608,94426.0,94403.0,1.50076]
[1735326543192,0.3608,94426.0,94417.0,0.053038]
[1735326545298,0.3618,94426.0,94419.0,0.053037]
[1735326545688,0.3608,94426.0,94425.0,0.053034]
[1735326545891,0.001,94426.0,94425.0,0.053034]
[1735326546089,0.18956308,94433.0,94432.0,0.05303]
[1735326546286,0.18956308,94443.0,94432.0,1.5]
[1735326546492,0.18956308,94443.0,94442.0,0.3608]
[1735326547301,0.18956308,94443.0,94439.0,0.053026]
[1735326547800,0.002,94443.0,94442.0,0.053024]
[1735326548391,0.002,94443.0,94440.0,0.3608]
[1735326550193,0.0349,94448.0,94440.0,0.3608]
[1735326550392,0.002,94443.0,94440.0,0.3608]
[1735326551499,0.002,94443.0,94440.0,0.3618]
[1735326552095,0.00060001,94448.0,94440.0,0.3618]
[1735326552295,0.00158882,94449.0,94441.0,0.0383]
[1735326553294,0.00158882,94449.0,94448.0,0.053021]
[1735326553806,0.3608,94457.0,94456.0,0.053016]
[1735326554803,0.3608,94457.0,94456.0,1.553016]
[1735326555404,0.3668,94457.0,94456.0,1.553016]
[1735326556093,0.3668,94457.0,94448.0,0.3608]
[1735326556298,0.3668,94457.0,94455.0,0.053017]
[1735326556500,0.3698,94457.0,94455.0,1.553017]
[1735326556696,0.3698,94457.0,94455.0,0.053017]
[1735326556999,0.3698,94457.0,94448.0,0.42395193]
[1735326557202,0.41382,94449.0,94442.0,1.5]
[1735326557505,0.41382,94449.0,94430.0,0.3608]
[1735326557506,0.0351,94448.0,94430.0,0.37140057]
[1735326557800,0.053029,94434.0,94430.0,0.3608]
[1735326558112,0.3608,94437.0,94430.0,0.3608]
[1735326558296,0.053029,94434.0,94430.0,0.3608]
[1735326558697,0.053029,94434.0,94428.0,0.01054355]
[1735326558903,0.053029,94434.0,94433.0,0.003]
[1735326559406,0.054029,94434.0,94430.0,0.003]
[1735326560909,0.053029,94434.0,94433.0,0.002]
[1735326561405,0.054029,94434.0,94430.0,0.002]
[1735326561605,0.054029,94434.0,94430.0,0.003]
[1735326561996,0.053029,94434.0,94433.0,0.002]
[1735326562701,0.054029,94434.0,94430.0,0.002]
[1735326562904,0.19046782,94434.0,94433.0,0.053029]
[1735326563900,0.001,94434.0,94433.0,1.553029]
[1735326564407,0.001,94434.0,94433.0,1.555029]
[1735326564604,0.18946782,94446.0,94445.0,0.053022]
[1735326564799,0.18946782,94446.0,94445.0,0.413822]
[1735326565004,0.12483637,94459.0,94457.0,0.053016]
[1735326565202,0.12483637,94459.0,94458.0,0.3608]
[1735326565411,0.12483637,94459.0,94458.0,1.5]
[1735326566007,0.25332085,94466.0,94458.0,1.5]
[1735326566203,0.05301,94468.0,94458.0,1.5]
[1735326566706,0.005,94459.0,94458.0,1.553015]
[1735326566913,0.3658,94459.0,94458.0,1.5]
[1735326567406,0.3728,94459.0,94458.0,1.5]
[1735326568208,0.3678,94459.0,94458.0,1.553015]
[1735326568413,0.3678,94459.0,94454.0,0.01032822]
[1735326568713,0.3678,94459.0,94451.0,0.053019]
[1735326568898,0.3678,94459.0,94452.0,1.5]
[1735326569101,0.3728,94459.0,94452.0,1.5]
[1735326569511,0.3728,94459.0,94457.0,0.053015]
[1735326569911,0.3708,94459.0,94457.0,0.053015]
[1735326570303,0.3638,94459.0,94457.0,0.053015]
[1735326570507,0.3678,94459.0,94457.0,0.053015]
[1735326570808,0.007,94459.0,94457.0,0.053015]
[1735326571013,0.01,94459.0,94457.0,0.053015]
[1735326571406,0.005,94459.0,94457.0,0.053015]
[1735326571603,0.009,94459.0,94458.0,0.0374]
[1735326572030,0.005,94459.0,94458.0,0.0374]
[1735326572211,0.006,94459.0,94458.0,1.5]
[1735326572518,0.006,94459.0,94457.0,0.053015]
[1735326573016,0.007,94459.0,94457.0,0.053015]
[1735326573606,0.009,94459.0,94457.0,0.053015]
[1735326574210,0.008,94459.0,94457.0,0.053015]
[1735326574410,0.004,94459.0,94457.0,0.053015]
[1735326574609,0.008,94459.0,94457.0,0.053015]
[1735326576821,0.03718809,94487.0,94480.0,0.053003]
[1735326577004,0.03718809,94487.0,94485.0,0.3608]
[1735326577209,0.00158809,94487.0,94485.0,0.4138]
[1735326577513,0.00158809,94487.0,94486.0,1.5]
[1735326577714,0.00158809,94487.0,94485.0,0.4138]
[1735326578509,0.01058809,94487.0,94485.0,0.053]
[1735326578910,0.01858809,94487.0,94485.0,0.053]
[1735326579528,0.01858809,94487.0,94479.0,0.01066267]
[1735326579529,0.07158709,94487.0,94479.0,0.01066267]
[1735326580017,0.07158709,94487.0,94478.0,0.0008]
[1735326580312,0.053002,94483.0,94475.0,0.3608]
[1735326580815,0.053002,94483.0,94465.0,0.3608]
[1735326581025,0.053002,94483.0,94479.0,0.001]
[1735326581317,0.3608,94484.0,94479.0,0.002]
[1735326581521,0.009,94483.0,94479.0,0.001]
[1735326581721,0.009,94483.0,94482.0,0.053002]
[1735326581910,0.012,94483.0,94482.0,0.053002]
[1735326582708,0.015,94483.0,94482.0,0.053002]
[1735326584009,0.006,94483.0,94482.0,0.053002]
[1735326584220,0.015,94483.0,94482.0,0.054002]
[1735326584821,0.016,94483.0,94482.0,0.055002]
[1735326592927,0.016,94483.0,94482.0,0.415802]
[1735326593117,0.15805102,94491.0,94490.0,0.052997]
[1735326593424,0.15805102,94491.0,94490.0,1.913797]
[1735326594312,0.17505102,94491.0,94490.0,1.915797]
[1735326594517,0.017,94491.0,94490.0,1.915797]
[1735326598322,0.017,94491.0,94490.0,1.92625925]
[1735326600728,0.017,94491.0,94490.0,0.42625925]
[1735326601723,0.017,94491.0,94490.0,0.01246225]
[1735326601929,0.430797,94491.0,94490.0,0.002]
[1735326602229,0.053004,94478.0,94475.0,0.01037337]
[1735326602429,0.053004,94478.0,94474.0,0.3608]
[1735326602430,0.0345,94477.0,94474.0,0.3608]
[1735326603531,0.0345,94477.0,94474.0,0.37129074]
[1735326603826,0.0425,94477.0,94474.0,0.37229074]
[1735326604028,0.18929732,94475.0,94474.0,0.37229074]
[1735326605227,0.008,94477.0,94474.0,0.37229074]
[1735326606534,0.008,94475.0,94474.0,0.37229074]
[1735326606930,0.013,94475.0,94474.0,0.37229074]
[1735326607230,0.005,94475.0,94474.0,0.37229074]
[1735326607627,0.013,94475.0,94474.0,0.37229074]
[1735326610135,0.008,94475.0,94474.0,0.37229074]
[1735326610333,0.013,94475.0,94474.0,0.37229074]
[1735326610927,0.013,94475.0,94474.0,0.01149074]
[1735326615344,0.07761263,94498.0,94497.0,0.052993]
[1735326615531,0.3608,94516.0,94497.0,0.3608]
[1735326615731,0.0377,94524.0,94515.0,0.3608]
[1735326616340,0.0377,94524.0,94522.0,0.052979]
[1735326617139,0.0377,94524.0,94515.0,0.001]
[1735326617445,0.052982,94517.0,94515.0,0.001]
[1735326618438,0.061982,94517.0,94515.0,0.002]
[1735326619547,0.061982,94517.0,94515.0,0.001]
[1735326620045,0.009,94517.0,94516.0,0.052983]
[1735326621140,0.3608,94519.0,94518.0,0.052982]
[1735326621841,0.00158753,94540.0,94525.0,0.052978]
[1735326621842,0.36238753,94540.0,94525.0,0.052978]
[1735326622048,0.0357,94537.0,94520.0,0.10737817]
[1735326622235,0.0357,94537.0,94526.0,0.3608]
[1735326622441,0.0357,94537.0,94536.0,0.052971]
[1735326623254,0.0357,94537.0,94526.0,0.3608]
[1735326623435,0.3608,94529.0,94527.0,0.052976]
[1735326624453,0.0457,94537.0,94536.0,0.052971]
[1735326625346,0.0447,94537.0,94536.0,0.052971]
[1735326625740,0.0357,94537.0,94536.0,0.052971]
[1735326626241,0.0367,94537.0,94536.0,0.053971]
[1735326626637,0.0437,94537.0,94536.0,0.054971]
[1735326627354,0.0367,94537.0,94536.0,0.053971]
[1735326627536,0.0437,94537.0,94536.0,0.054971]
[1735326628451,0.0427,94537.0,94536.0,0.053971]
[1735326628647,0.0447,94537.0,94536.0,0.054971]
[1735326629150,0.0457,94537.0,94536.0,0.054971]
[1735326629740,0.01,94537.0,94536.0,0.054971]
[1735326630653,0.002,94537.0,94536.0,0.053971]
[1735326630857,0.01,94537.0,94536.0,0.054971]
[1735326632356,0.01,94537.0,94536.0,0.002]
[1735326632745,0.01,94537.0,94506.0,0.3608]
[1735326632746,0.31,94537.0,94506.0,0.3608]
[1735326632949,0.3608,94520.0,94510.0,0.16036417]
[1735326633147,0.0353,94519.0,94515.0,0.052983]
[1735326633652,0.088281,94519.0,94515.0,0.052983]
[1735326634051,0.3608,94520.0,94517.0,0.052982]
[1735326634654,0.007,94519.0,94515.0,0.001]
[1735326634955,0.007,94519.0,94518.0,0.052982]
[1735326635347,0.01,94519.0,94518.0,0.052982]
[1735326635748,0.007,94519.0,94518.0,0.052982]
[1735326635950,0.01,94519.0,94518.0,0.052982]
[1735326636250,0.003,94519.0,94518.0,0.052982]
[1735326636451,0.004,94519.0,94518.0,0.052982]
[1735326636651,0.004,94519.0,94518.0,1.552982]
[1735326636851,0.007,94520.0,94518.0,1.552982]
[1735326637049,0.012,94519.0,94518.0,1.553982]
[1735326637951,0.012,94519.0,94518.0,0.053982]
[1735326638452,0.008,94519.0,94518.0,1.553982]
[1735326639152,0.011,94519.0,94518.0,1.56445815]
[1735326639567,0.008,94519.0,94518.0,1.56445815]
[1735326639755,0.011,94519.0,94518.0,1.56445815]
[1735326641564,0.011,94519.0,94518.0,1.553982]
[1735326641855,0.011,94519.0,94518.0,0.053982]
[1735326642054,0.008,94519.0,94518.0,0.053982]
[1735326642256,0.011,94519.0,94518.0,1.553982]
[1735326643761,0.011,94519.0,94518.0,1.914782]
[1735326643956,0.011,94519.0,94518.0,1.949782]
[1735326644161,0.22074206,94538.0,94518.0,1.949782]
[1735326644162,0.22074206,94538.0,94518.0,1.8968]
[1735326644364,0.22074206,94538.0,94530.0,0.052975]
[1735326644557,0.22074206,94538.0,94534.0,0.052972]
[1735326644861,0.22074206,94538.0,94528.0,0.10737817]
[1735326644862,0.22232959,94540.0,94535.0,0.052972]
[1735326645258,0.003,94538.0,94528.0,0.10737817]
[1735326645458,0.003,94538.0,94536.0,0.052971]
[1735326645854,0.00158753,94540.0,94539.0,0.05297]
[1735326646252,0.00258753,94540.0,94539.0,0.05297]
[1735326646861,0.00258753,94540.0,94539.0,1.55297]
[1735326647074,0.00258753,94540.0,94539.0,1.55397]
[1735326648054,0.00258753,94540.0,94539.0,1.55497]
[1735326650454,0.001,94540.0,94539.0,1.55497]
[1735326651564,0.0731,94564.0,94560.0,0.052958]
[1735326651762,0.3608,94565.0,94560.0,0.052958]
[1735326651965,0.3608,94565.0,94563.0,0.052956]
[1735326652263,0.22074206,94572.0,94554.0,0.10737817]
[1735326652264,0.22074206,94572.0,94568.0,0.052953]
[1735326652458,0.22074206,94572.0,94569.0,1.5]
[1735326652658,0.28498596,94573.0,94569.0,1.5]
[1735326653063,0.28498596,94573.0,94572.0,0.413751]
[1735326653659,0.28498596,94573.0,94572.0,1.913751]
[1735326653962,0.00158669,94581.0,94572.0,1.913751]
[1735326654166,0.00158669,94581.0,94572.0,1.8608]
[1735326654668,0.052949,94576.0,94572.0,1.5]
[1735326655361,0.052949,94576.0,94572.0,0.001]
[1735326655557,0.0701,94575.0,94572.0,0.001]
[1735326655754,0.0701,94575.0,94568.0,1.5]
[1735326655958,0.0701,94575.0,94572.0,0.002]
[1735326656463,0.0364,94574.0,94572.0,0.002]
[1735326657059,0.08935,94574.0,94572.0,0.002]
[1735326657363,0.08935,94574.0,94572.0,0.001]
[1735326657568,0.08935,94574.0,94572.0,0.002]
[1735326658065,0.052955,94566.0,94556.0,0.05296]
[1735326659271,0.052956,94565.0,94556.0,0.05296]
[1735326660173,0.052956,94564.0,94556.0,0.05296]
[1735326660361,0.413759,94559.0,94545.0,1.50084]
[1735326660676,0.052959,94558.0,94550.0,0.052963]
[1735326662167,0.001,94558.0,94545.0,1.86156]
[1735326662372,0.003,94558.0,94545.0,1.8608]
[1735326662964,0.052963,94552.0,94545.0,1.8608]
[1735326663165,0.1077,94551.0,94545.0,0.3608]
[1735326663465,0.1077,94551.0,94546.0,0.052966]
[1735326663873,0.0374,94551.0,94549.0,0.05296]
[1735326664371,0.003,94558.0,94545.0,0.3608]
[1735326664576,0.002,94558.0,94554.0,0.052957]
[1735326665073,0.001,94558.0,94554.0,0.052957]
[1735326665266,0.3608,94559.0,94554.0,0.052957]
[1735326665465,0.001,94558.0,94554.0,0.052957]
[1735326665666,0.002,94558.0,94554.0,0.052957]
[1735326666164,0.001,94558.0,94554.0,0.052957]
[1735326666470,0.002,94558.0,94545.0,0.3608]
[1735326666666,0.002,94558.0,94556.0,0.052955]
[1735326667466,0.002,94558.0,94557.0,0.0342]
[1735326668072,0.002,94558.0,94557.0,1.5342]
[1735326668268,0.052944,94576.0,94557.0,1.5342]
[1735326668468,0.052944,94576.0,94575.0,0.3608]
[1735326669974,0.053944,94576.0,94575.0,0.3618]
[1735326671575,0.055944,94576.0,94575.0,0.3628]
[1735326671777,0.003,94576.0,94575.0,0.3628]
[1735326671970,0.0351,94589.0,94575.0,0.3628]
[1735326672172,0.0351,94589.0,94576.0,0.0354]
[1735326672373,0.052935,94591.0,94579.0,0.10737817]
[1735326672765,0.052932,94598.0,94587.0,0.052937]
[1735326672969,0.052932,94598.0,94579.0,0.10737817]
[1735326673771,0.052932,94598.0,94588.0,0.052937]
[1735326673972,0.052933,94595.0,94588.0,0.052937]
[1735326674478,0.052938,94587.0,94580.0,1.552941]
[1735326674677,0.052941,94581.0,94579.0,0.001]
[1735326674973,0.0375,94580.0,94579.0,0.001]
[1735326675166,0.126242,94580.0,94579.0,0.001]
[1735326675568,0.0733,94580.0,94575.0,0.3608]
[1735326675768,0.052943,94577.0,94575.0,0.3608]
[1735326676674,0.0346,94579.0,94575.0,0.3608]
[1735326677881,0.052943,94578.0,94575.0,0.3618]
[1735326678183,0.052943,94578.0,94575.0,0.3628]
[1735326681671,0.22133896,94581.0,94578.0,0.052942]
[1735326681981,0.22133896,94581.0,94579.0,0.052942]
[1735326683280,0.3608,94584.0,94579.0,0.053942]
[1735326683680,0.413739,94584.0,94579.0,0.053942]
[1735326684480,0.413739,94584.0,94579.0,0.054942]
[1735326684785,0.413739,94584.0,94579.0,0.053942]
[1735326684966,0.413739,94584.0,94579.0,0.054942]
[1735326685172,0.05294,94583.0,94579.0,0.054942]
[1735326685780,0.052941,94582.0,94579.0,0.054942]
[1735326685981,0.052941,94581.0,94579.0,0.054942]
[1735326689377,0.052941,94581.0,94579.0,0.053942]
[1735326689685,0.052941,94581.0,94579.0,0.054942]
[1735326690371,0.36136001,94584.0,94582.0,0.05294]
[1735326690568,0.052938,94586.0,94582.0,0.05294]
[1735326690770,0.00064,94592.0,94579.0,0.002]
[1735326690771,0.11772273,94592.0,94579.0,0.002]
[1735326690975,0.3608,94585.0,94580.0,1.5]
[1735326691476,0.3608,94585.0,94579.0,0.002]
[1735326691778,0.052955,94556.0,94544.0,0.052961]
[1735326691990,0.052955,94556.0,94546.0,0.19023043]
[1735326692177,0.052955,94556.0,94546.0,0.24319043]
[1735326692482,0.052955,94556.0,94547.0,0.05296]
[1735326692677,0.0349,94562.0,94546.0,0.19023043]
[1735326692678,0.05296,94547.0,94546.0,0.19023043]
[1735326693376,0.05296,94547.0,94541.0,1.50076]
[1735326693570,0.05296,94547.0,94543.0,0.052962]
[1735326694587,0.052956,94554.0,94546.0,0.3608]
[1735326695080,0.052956,94554.0,94547.0,0.05296]
[1735326695280,0.0349,94562.0,94546.0,0.3608]
[1735326695485,0.052952,94562.0,94558.0,0.3608]
[1735326696880,0.052953,94560.0,94558.0,0.3608]
[1735326698587,0.053953,94560.0,94558.0,0.3608]
[1735326700884,0.0723,94559.0,94558.0,0.3608]
[1735326702179,0.0733,94559.0,94558.0,0.3608]
[1735326702381,0.0733,94559.0,94550.0,0.06339269]
[1735326702585,0.0733,94559.0,94546.0,0.3608]
[1735326702890,0.052957,94553.0,94546.0,0.55092513]
[1735326704190,0.052957,94553.0,94546.0,0.3608]
[1735326704492,0.052958,94552.0,94546.0,0.3608]
[1735326705080,0.24304432,94552.0,94546.0,0.3608]
[1735326706187,0.19008632,94549.0,94546.0,0.3608]
[1735326707279,0.05296,94548.0,94546.0,0.3608]
[1735326707479,0.052966,94537.0,94531.0,1.56420697]
[1735326707681,0.052972,94525.0,94522.0,0.19012513]
[1735326708188,0.052973,94523.0,94522.0,0.19012513]
[1735326708796,0.052973,94523.0,94518.0,0.25350017]
[1735326708797,0.052975,94520.0,94513.0,0.052979]
[1735326708992,0.045975,94520.0,94513.0,0.052979]
[1735326711296,0.048975,94520.0,94513.0,0.052979]
[1735326711485,0.05298,94512.0,94503.0,0.052985]
[1735326711789,0.052976,94519.0,94509.0,0.052981]
[1735326713590,0.003,94520.0,94507.0,0.01071294]
[1735326713782,0.003,94520.0,94518.0,0.052976]
[1735326713983,0.003,94520.0,94519.0,0.0752]
[1735326714389,0.36140001,94524.0,94509.0,0.001]
[1735326714698,0.052974,94522.0,94512.0,0.052979]
[1735326714898,0.052974,94522.0,94515.0,0.052978]
[1735326715088,0.052974,94522.0,94520.0,0.3608]
[1735326715399,0.052974,94522.0,94521.0,1.5]
[1735326715596,0.00158748,94531.0,94520.0,0.3608]
[1735326715597,0.05297,94529.0,94520.0,0.3608]
[1735326716099,0.05297,94529.0,94520.0,1.8608]
[1735326716487,0.052971,94528.0,94520.0,0.3608]
[1735326717398,0.056974,94522.0,94520.0,0.3608]
[1735326718397,0.052974,94522.0,94520.0,0.3608]
[1735326719100,0.056974,94522.0,94520.0,0.3608]
[1735326720390,0.004,94522.0,94520.0,0.3608]
[1735326720698,0.002,94522.0,94520.0,0.3608]
[1735326720900,0.005,94522.0,94520.0,0.3608]
[1735326721195,0.006,94522.0,94520.0,0.3608]
[1735326721999,0.003,94522.0,94520.0,0.3618]
[1735326722198,0.052972,94526.0,94520.0,0.3618]
[1735326722395,0.003,94522.0,94520.0,0.3618]
[1735326723201,0.003,94522.0,94520.0,0.37208882]
[1735326724201,0.003,94522.0,94520.0,0.37108882]
[1735326724605,0.00158748,94531.0,94520.0,0.37108882]
[1735326724805,0.00158748,94531.0,94530.0,0.3608]
[1735326725393,0.00158748,94531.0,94530.0,0.413769]
[1735326725594,0.05455648,94531.0,94530.0,0.3608]
[1735326727291,0.05555648,94531.0,94530.0,0.3608]
[1735326727493,0.05755648,94531.0,94530.0,0.3608]
[1735326727693,0.00458748,94531.0,94530.0,0.3608]
[1735326727901,0.00458748,94531.0,94530.0,0.3961]
[1735326728699,0.00358748,94531.0,94530.0,0.3961]
[1735326730104,0.00358748,94531.0,94530.0,0.40665231]
[1735326730407,0.00458748,94531.0,94530.0,0.40665231]
[1735326730810,0.00258748,94531.0,94530.0,0.40765231]
[1735326731199,0.00258748,94531.0,94530.0,0.40665231]
[1735326731399,0.00258748,94531.0,94530.0,0.40765231]
[1735326732512,0.00258748,94531.0,94530.0,0.40665231]
[1735326733506,0.05455648,94531.0,94530.0,0.3608]
[1735326733704,0.05555648,94531.0,94530.0,0.3608]
[1735326734912,0.06055648,94531.0,94530.0,0.3608]
[1735326736106,0.05955648,94531.0,94530.0,0.3608]
[1735326736407,0.00758748,94531.0,94530.0,0.413769]